[Event "Elitserien 2022/2023"]
[Site "Elite Hotel Marina Plaza, Kungstorget 6, Helsingborg, Sweden"]
[Date "2022.10.14"]
[Round "1.19"]
[White "Neiksans, Arturs"]
[Black "Domingo Nunez, Ruben"]
[Result "1/2-1/2"]
[TimeControl "90 minutes for 40 moves + 30 minutes for the rest of the game + 30 seconds per move from move one."]
[WhiteTitle "GM"]
[BlackTitle "FM"]
[WhiteFideId "11601388"]
[BlackFideId "22245570"]
[WhiteElo "2594"]
[BlackElo "2369"]

1. e4 {[%clk 01:30:57]} {[%emt 00:00:03]} c5 {[%clk 01:27:56]} {[%emt
00:03:04]} 2. Nf3 {[%clk 01:31:13]} {[%emt 00:00:14]} Nc6 {[%clk 01:28:22]}
{[%emt 00:00:04]} 3. Bb5 {[%clk 01:31:12]} {[%emt 00:00:31]} g6 {[%clk
01:28:47]} {[%emt 00:00:05]} 4. Bxc6 {[%clk 01:29:49]} {[%emt 00:01:53]} bxc6
{[%clk 01:29:14]} {[%emt 00:00:04]} 5. O-O {[%clk 01:29:31]} {[%emt 00:00:47]}
Bg7 {[%clk 01:29:11]} {[%emt 00:00:33]} 6. Re1 {[%clk 01:29:54]} {[%emt
00:00:07]} Nh6 {[%clk 01:22:05]} {[%emt 00:07:35]} 7. c3 {[%clk 01:29:17]}
{[%emt 00:01:07]} O-O {[%clk 01:22:19]} {[%emt 00:00:17]} 8. h3 {[%clk
01:23:52]} {[%emt 00:05:55]} f5 {[%clk 01:09:32]} {[%emt 00:13:16]} 9. e5
{[%clk 01:24:01]} {[%emt 00:00:21]} Nf7 {[%clk 01:09:47]} {[%emt 00:00:15]} 10.
d3 {[%clk 01:17:48]} {[%emt 00:06:44]} h6 {[%clk 01:09:30]} {[%emt 00:00:47]}
11. Na3 {[%clk 01:13:03]} {[%emt 00:05:15]} g5 {[%clk 00:53:11]} {[%emt
00:16:50]} 12. Nc4 {[%clk 00:44:57]} {[%emt 00:28:35]} d5 {[%clk 00:35:21]}
{[%emt 00:18:20]} 13. exd6 {[%clk 00:32:20]} {[%emt 00:13:07]} exd6 {[%clk
00:35:42]} {[%emt 00:00:08]} 14. d4 {[%clk 00:32:45]} {[%emt 00:00:06]} g4
{[%clk 00:34:54]} {[%emt 00:01:18]} 15. hxg4 {[%clk 00:33:05]} {[%emt
00:00:10]} fxg4 {[%clk 00:35:17]} {[%emt 00:00:08]} 16. Nh2 {[%clk 00:33:30]}
{[%emt 00:00:04]} cxd4 {[%clk 00:28:25]} {[%emt 00:07:21]} 17. cxd4 {[%clk
00:33:52]} {[%emt 00:00:08]} h5 {[%clk 00:24:03]} {[%emt 00:04:53]} 18. Be3
{[%clk 00:34:15]} {[%emt 00:00:06]} Be6 {[%clk 00:21:28]} {[%emt 00:03:05]} 19.
Rc1 {[%clk 00:32:35]} {[%emt 00:02:10]} Bd5 {[%clk 00:17:53]} {[%emt 00:04:06]}
20. Nf1 {[%clk 00:27:55]} {[%emt 00:05:11]} Qh4 {[%clk 00:13:48]} {[%emt
00:04:34]} 21. Qd2 {[%clk 00:20:31]} {[%emt 00:07:55]} Qf6 {[%clk 00:14:13]}
{[%emt 00:00:05]} 22. Ng3 {[%clk 00:20:04]} {[%emt 00:00:56]} h4 {[%clk
00:13:31]} {[%emt 00:01:12]} 23. Nh5 {[%clk 00:19:48]} {[%emt 00:00:45]} Qf5
{[%clk 00:13:28]} {[%emt 00:00:34]} 24. Nxg7 {[%clk 00:18:15]} {[%emt
00:02:02]} Kxg7 {[%clk 00:13:55]} {[%emt 00:00:04]} 25. Bf4 {[%clk 00:18:38]}
{[%emt 00:00:08]} h3 {[%clk 00:12:15]} {[%emt 00:02:10]} 26. Nxd6 {[%clk
00:14:40]} {[%emt 00:04:27]} Nxd6 {[%clk 00:10:40]} {[%emt 00:02:06]} 27. Bxd6
{[%clk 00:15:05]} {[%emt 00:00:04]} hxg2 {[%clk 00:11:08]} {[%emt 00:00:02]} 28.
Bxf8+ {[%clk 00:10:16]} {[%emt 00:05:20]} Rxf8 {[%clk 00:11:36]} {[%emt
00:00:01]} 29. Re5 {[%clk 00:10:39]} {[%emt 00:00:07]} Rh8 {[%clk 00:02:03]}
{[%emt 00:10:03]} 30. Qg5+ {[%clk 00:10:45]} {[%emt 00:00:24]} Qxg5 {[%clk
00:02:29]} {[%emt 00:00:05]} 31. Rxg5+ {[%clk 00:11:09]} {[%emt 00:00:04]} Kf6
{[%emt 00:00:03]} 32. Rxd5 {[%clk 00:11:32]} {[%emt 00:00:06]} cxd5 {[%clk
00:03:25]} {[%emt 00:00:03]} 33. Rc7 {[%clk 00:07:13]} {[%emt 00:04:49]} Rb8
{[%clk 00:01:07]} {[%emt 00:02:48]} 34. b3 {[%clk 00:07:35]} {[%emt 00:00:08]}
a5 {[%clk 00:01:35]} {[%emt 00:00:02]} 35. Ra7 {[%clk 00:05:57]} {[%emt
00:02:08]} Kf5 {[%clk 00:00:32]} {[%emt 00:01:34]} 36. Re7 {[%clk 00:05:57]}
{[%emt 00:00:30]} a4 {[%clk 00:00:36]} {[%emt 00:00:26]} 37. Kxg2 {[%clk
00:02:07]} {[%emt 00:04:20]} axb3 {[%clk 00:00:57]} {[%emt 00:00:09]} 38. axb3
{[%clk 00:02:33]} {[%emt 00:00:04]} Rxb3 {[%clk 00:01:15]} {[%emt 00:00:12]} 39.
Re5+ {[%clk 00:02:57]} {[%emt 00:00:05]} Kf4 {[%clk 00:01:21]} {[%emt
00:00:24]} 40. Rxd5 {[%clk 00:02:50]} {[%emt 00:00:38]} g3 {[%clk 00:00:51]}
{[%emt 00:01:01]} 41. fxg3+ {[%clk 00:02:25]} {[%emt 00:00:55]} Rxg3+ {[%clk
00:01:15]} {[%emt 00:00:06]} 42. Kf2 {[%clk 00:02:51]} {[%emt 00:00:03]} Ke4
{[%clk 00:01:14]} {[%emt 00:00:31]} 43. Kxg3 {[%clk 00:03:16]} {[%emt
00:00:05]} Kxd5 {[%clk 00:01:41]} {[%emt 00:00:04]} 44. Kf4 {[%clk 00:03:42]}
{[%emt 00:00:04]} Kxd4 {[%clk 00:02:08]} {[%emt 00:00:03]} 1/2-1/2

[Event "Elitserien 2022/2023"]
[Site "Elite Hotel Marina Plaza, Kungstorget 6, Helsingborg, Sweden"]
[Date "2022.10.14"]
[Round "1.20"]
[White "Jepson, Christian"]
[Black "Barkhagen, Jonas"]
[Result "1-0"]
[TimeControl "90 minutes for 40 moves + 30 minutes for the rest of the game + 30 seconds per move from move one."]
[WhiteTitle "IM"]
[BlackTitle "IM"]
[WhiteFideId "1701185"]
[BlackFideId "1700855"]
[WhiteElo "2401"]
[BlackElo "2424"]

1. Nf3 {[%clk 01:30:55]} {[%emt 00:00:04]} Nf6 {[%clk 01:30:22]} {[%emt
00:00:38]} 2. c4 {[%clk 01:31:15]} {[%emt 00:00:10]} b6 {[%clk 01:30:43]}
{[%emt 00:00:08]} 3. g3 {[%clk 01:31:22]} {[%emt 00:00:23]} c5 {[%clk
01:31:08]} {[%emt 00:00:05]} 4. Bg2 {[%clk 01:31:31]} {[%emt 00:00:22]} Bb7
{[%clk 01:31:32]} {[%emt 00:00:06]} 5. O-O {[%clk 01:31:22]} {[%emt 00:00:39]}
g6 {[%clk 01:31:55]} {[%emt 00:00:07]} 6. b3 {[%clk 01:25:42]} {[%emt
00:06:10]} Bg7 {[%clk 01:32:14]} {[%emt 00:00:10]} 7. Bb2 {[%clk 01:26:08]}
{[%emt 00:00:04]} O-O {[%clk 01:32:35]} {[%emt 00:00:09]} 8. d4 {[%clk
01:23:09]} {[%emt 00:03:31]} cxd4 {[%clk 01:25:10]} {[%emt 00:07:54]} 9. Qxd4
{[%clk 01:23:17]} {[%emt 00:00:21]} d6 {[%clk 01:23:42]} {[%emt 00:01:58]} 10.
Rd1 {[%clk 01:22:30]} {[%emt 00:01:17]} Nbd7 {[%clk 01:22:27]} {[%emt
00:01:46]} 11. Nc3 {[%clk 01:22:25]} {[%emt 00:00:35]} Ne4 {[%clk 01:04:33]}
{[%emt 00:18:23]} 12. Qe3 {[%clk 01:22:18]} {[%emt 00:00:38]} Nxc3 {[%clk
01:04:56]} {[%emt 00:00:07]} 13. Bxc3 {[%clk 01:22:41]} {[%emt 00:00:07]} Bxc3
{[%clk 01:05:00]} {[%emt 00:00:25]} 14. Qxc3 {[%clk 01:23:05]} {[%emt
00:00:07]} Bxf3 {[%clk 01:05:21]} {[%emt 00:00:09]} 15. Bxf3 {[%clk 01:09:40]}
{[%emt 00:13:55]} Rc8 {[%clk 01:05:38]} {[%emt 00:00:12]} 16. a4 {[%clk
01:09:47]} {[%emt 00:00:24]} Rc5 {[%clk 00:56:32]} {[%emt 00:09:35]} 17. Rd4
{[%clk 01:07:32]} {[%emt 00:02:46]} Qc7 {[%clk 00:49:46]} {[%emt 00:07:16]} 18.
Rad1 {[%clk 01:02:33]} {[%emt 00:05:29]} b5 {[%clk 00:37:28]} {[%emt 00:12:48]}
19. axb5 {[%clk 00:38:01]} {[%emt 00:25:03]} Rxb5 {[%clk 00:37:36]} {[%emt
00:00:21]} 20. Bd5 {[%clk 00:18:52]} {[%emt 00:19:39]} Nf6 {[%clk 00:28:42]}
{[%emt 00:09:23]} 21. R1d3 {[%clk 00:09:47]} {[%emt 00:09:37]} Rc5 {[%clk
00:08:26]} {[%emt 00:20:44]} 22. Qd2 {[%clk 00:09:09]} {[%emt 00:01:09]} a5
{[%clk 00:08:24]} {[%emt 00:00:32]} 23. Qh6 {[%clk 00:07:34]} {[%emt 00:02:05]}
Rc8 {[%clk 00:04:59]} {[%emt 00:03:54]} 24. Rf3 {[%clk 00:02:00]} {[%emt
00:06:05]} Qd8 {[%clk 00:04:56]} {[%emt 00:00:33]} 25. Rxf6 {[%clk 00:01:51]}
{[%emt 00:00:38]} exf6 {[%clk 00:05:02]} {[%emt 00:00:25]} 26. Rh4 {[%clk
00:02:13]} {[%emt 00:00:08]} Rxd5 {[%clk 00:04:41]} {[%emt 00:00:51]} 27. cxd5
{[%clk 00:02:20]} {[%emt 00:00:23]} f5 {[%clk 00:05:07]} {[%emt 00:00:04]} 28.
e4 {[%clk 00:01:55]} {[%emt 00:00:55]} Qd7 {[%clk 00:03:35]} {[%emt 00:02:02]}
29. Qxh7+ {[%clk 00:01:05]} {[%emt 00:01:20]} Kf8 {[%clk 00:04:04]} 30. e5
{[%clk 00:00:50]} {[%emt 00:00:45]} Ke7 {[%clk 00:01:13]} {[%emt 00:03:21]} 31.
e6 {[%clk 00:00:44]} {[%emt 00:00:36]} Qe8 {[%clk 00:01:38]} {[%emt 00:00:05]}
32. Ra4 {[%clk 00:00:59]} {[%emt 00:00:16]} Rc5 {[%clk 00:00:59]} {[%emt
00:01:09]} 33. Qh4+ {[%clk 00:01:04]} {[%emt 00:00:24]} Kf8 {[%clk 00:01:13]}
{[%emt 00:00:16]} 34. Qh8+ {[%clk 00:01:30]} {[%emt 00:00:04]} Ke7 {[%clk
00:01:33]} {[%emt 00:00:11]} 35. Qh4+ {[%clk 00:01:54]} {[%emt 00:00:06]} Kf8
{[%clk 00:01:59]} {[%emt 00:00:03]} 36. Qf6 {[%clk 00:01:52]} {[%emt 00:00:31]}
Rxd5 {[%clk 00:00:55]} {[%emt 00:01:35]} 37. Rh4 {[%clk 00:01:55]} {[%emt
00:00:26]} Rd1+ {[%clk 00:01:19]} {[%emt 00:00:06]} 38. Kg2 {[%clk 00:02:23]}
{[%emt 00:00:03]} Qc6+ {[%clk 00:01:44]} {[%emt 00:00:05]} 1-0

[Event "Elitserien 2022/2023"]
[Site "Elite Hotel Marina Plaza, Kungstorget 6, Helsingborg, Sweden"]
[Date "2022.10.14"]
[Round "1.21"]
[White "Trost, Edvin"]
[Black "Brynell, Stellan"]
[Result "1/2-1/2"]
[TimeControl "90 minutes for 40 moves + 30 minutes for the rest of the game + 30 seconds per move from move one."]
[WhiteTitle "FM"]
[BlackTitle "GM"]
[WhiteFideId "1729519"]
[BlackFideId "1700219"]
[WhiteElo "2340"]
[BlackElo "2383"]

1. d4 {[%clk 01:30:55]} {[%emt 00:00:04]} Nf6 {[%clk 01:30:46]} {[%emt
00:00:14]} 2. c4 {[%clk 01:31:13]} {[%emt 00:00:13]} e6 {[%clk 01:31:04]}
{[%emt 00:00:12]} 3. Nf3 {[%clk 01:31:14]} {[%emt 00:00:28]} d5 {[%clk
01:30:59]} {[%emt 00:00:35]} 4. g3 {[%clk 01:30:53]} {[%emt 00:00:53]} dxc4
{[%clk 01:30:30]} {[%emt 00:00:57]} 5. Bg2 {[%clk 01:30:56]} {[%emt 00:00:28]}
c5 {[%clk 01:30:50]} {[%emt 00:00:09]} 6. O-O {[%clk 01:28:17]} {[%emt
00:03:09]} Nc6 {[%clk 01:30:31]} {[%emt 00:00:48]} 7. dxc5 {[%clk 01:26:52]}
{[%emt 00:01:55]} Qxd1 {[%clk 01:30:24]} {[%emt 00:00:38]} 8. Rxd1 {[%clk
01:27:18]} {[%emt 00:00:05]} Bxc5 {[%clk 01:30:43]} {[%emt 00:00:10]} 9. Nfd2
{[%clk 01:27:00]} {[%emt 00:00:48]} O-O {[%clk 01:13:27]} {[%emt 00:17:45]} 10.
Nxc4 {[%clk 01:25:06]} {[%emt 00:02:25]} Rd8 {[%clk 01:07:01]} {[%emt
00:06:56]} 11. Rxd8+ {[%clk 01:20:33]} {[%emt 00:05:03]} Nxd8 {[%clk 01:07:03]}
{[%emt 00:00:27]} 12. Nc3 {[%clk 01:13:05]} {[%emt 00:07:58]} Bd7 {[%clk
00:57:47]} {[%emt 00:09:46]} 13. Na5 {[%clk 01:08:10]} {[%emt 00:05:25]} Ng4
{[%clk 00:50:11]} {[%emt 00:08:05]} 14. Ne4 {[%clk 01:07:21]} {[%emt 00:01:20]}
Bb4 {[%clk 00:49:38]} {[%emt 00:01:04]} 15. Bd2 {[%clk 00:56:20]} {[%emt
00:11:31]} Bxd2 {[%clk 00:44:07]} {[%emt 00:06:00]} 16. Nxd2 {[%clk 00:56:47]}
{[%emt 00:00:04]} Rc8 {[%clk 00:43:27]} {[%emt 00:01:09]} 17. Nxb7 {[%clk
00:55:27]} {[%emt 00:01:51]} Nxb7 {[%clk 00:42:35]} {[%emt 00:01:22]} 18. Bxb7
{[%clk 00:55:52]} {[%emt 00:00:04]} Rc2 {[%clk 00:42:30]} {[%emt 00:00:35]} 19.
Rd1 {[%clk 00:56:01]} {[%emt 00:00:21]} Rxb2 {[%clk 00:42:09]} {[%emt
00:00:51]} 20. Bf3 {[%clk 00:55:37]} {[%emt 00:00:53]} Ne5 {[%clk 00:25:29]}
{[%emt 00:17:11]} 21. Nc4 {[%clk 00:54:01]} {[%emt 00:02:05]} Nxf3+ {[%clk
00:25:50]} {[%emt 00:00:09]} 22. exf3 {[%clk 00:54:31]} {[%emt 00:00:01]} Rb7
{[%clk 00:26:10]} {[%emt 00:00:10]} 23. Nd6 {[%clk 00:49:43]} {[%emt 00:05:17]}
Rc7 {[%clk 00:24:41]} {[%emt 00:01:59]} 24. Nb5 {[%clk 00:50:00]} {[%emt
00:00:13]} Rb7 {[%clk 00:25:04]} {[%emt 00:00:08]} 25. Nd6 {[%clk 00:50:22]}
{[%emt 00:00:09]} Rc7 {[%clk 00:23:42]} {[%emt 00:01:51]} 26. Nb5 {[%clk
00:50:30]} {[%emt 00:00:22]} Rb7 {[%clk 00:24:07]} {[%emt 00:00:05]} 27. Nd6
{[%clk 00:50:52]} {[%emt 00:00:07]} 1/2-1/2

[Event "Elitserien 2022/2023"]
[Site "Elite Hotel Marina Plaza, Kungstorget 6, Helsingborg, Sweden"]
[Date "2022.10.14"]
[Round "1.22"]
[White "Ziegler, Ari"]
[Black "Sorensen, Hampus"]
[Result "0-1"]
[TimeControl "90 minutes for 40 moves + 30 minutes for the rest of the game + 30 seconds per move from move one."]
[WhiteTitle "IM"]
[BlackTitle "IM"]
[WhiteFideId "1700987"]
[BlackFideId "8703884"]
[WhiteElo "2311"]
[BlackElo "2396"]

1. e4 {[%clk 01:30:58]} e5 {[%clk 01:30:06]} {[%emt 00:00:54]} 2. Nf3 {[%clk
01:31:22]} {[%emt 00:00:06]} Nc6 {[%clk 01:30:07]} {[%emt 00:00:29]} 3. Bb5
{[%clk 01:31:46]} {[%emt 00:00:07]} a6 {[%clk 01:29:55]} {[%emt 00:00:42]} 4.
Ba4 {[%clk 01:32:09]} {[%emt 00:00:07]} Nf6 {[%clk 01:29:13]} {[%emt 00:01:13]}
5. O-O {[%clk 01:32:28]} {[%emt 00:00:09]} Bc5 {[%clk 01:29:08]} {[%emt
00:00:35]} 6. d3 {[%clk 01:27:06]} {[%emt 00:05:52]} b5 {[%clk 01:26:30]}
{[%emt 00:03:09]} 7. Bb3 {[%clk 01:21:59]} {[%emt 00:05:37]} d6 {[%clk
01:26:46]} {[%emt 00:00:14]} 8. Nc3 {[%clk 01:22:17]} {[%emt 00:00:12]} h6
{[%clk 01:23:52]} {[%emt 00:03:24]} 9. a4 {[%clk 01:20:10]} {[%emt 00:02:36]}
b4 {[%clk 01:21:00]} {[%emt 00:03:24]} 10. Ne2 {[%clk 01:20:29]} {[%emt
00:00:10]} O-O {[%clk 01:18:30]} {[%emt 00:03:00]} 11. Be3 {[%clk 01:13:53]}
{[%emt 00:07:05]} Ba7 {[%clk 01:05:56]} {[%emt 00:13:04]} 12. Ng3 {[%clk
01:05:19]} {[%emt 00:09:04]} a5 {[%clk 00:54:26]} {[%emt 00:12:00]} 13. Qd2
{[%clk 00:59:58]} {[%emt 00:05:50]} Ng4 {[%clk 00:50:57]} {[%emt 00:04:00]} 14.
Bxa7 {[%clk 00:58:49]} {[%emt 00:01:39]} Rxa7 {[%clk 00:51:18]} {[%emt
00:00:10]} 15. d4 {[%clk 00:52:26]} {[%emt 00:06:53]} exd4 {[%clk 00:44:52]}
{[%emt 00:06:56]} 16. Bd5 {[%clk 00:47:59]} {[%emt 00:04:55]} Ne7 {[%clk
00:37:40]} {[%emt 00:07:43]} 17. Nxd4 {[%clk 00:47:16]} {[%emt 00:01:13]} Bd7
{[%clk 00:37:06]} {[%emt 00:01:05]} 18. Bb3 {[%clk 00:41:33]} {[%emt 00:06:12]}
Nf6 {[%clk 00:33:08]} {[%emt 00:04:28]} 19. Rad1 {[%clk 00:39:59]} {[%emt
00:02:05]} c5 {[%clk 00:21:36]} {[%emt 00:12:02]} 20. Nde2 {[%clk 00:40:01]}
{[%emt 00:00:26]} Ra6 {[%clk 00:18:56]} {[%emt 00:03:11]} 21. f4 {[%clk
00:36:04]} {[%emt 00:04:27]} Qc8 {[%clk 00:09:46]} {[%emt 00:09:41]} 22. e5
{[%clk 00:31:10]} {[%emt 00:05:24]} Ne8 {[%clk 00:10:12]} {[%emt 00:00:03]} 23.
Bc4 {[%emt 00:03:51]} Rb6 {[%clk 00:10:27]} {[%emt 00:00:13]} 24. Ne4 {[%clk
00:23:57]} {[%emt 00:04:24]} Qc6 {[%clk 00:03:37]} {[%emt 00:07:22]} 25. N2g3
{[%clk 00:18:51]} {[%emt 00:05:36]} d5 {[%clk 00:01:35]} {[%emt 00:02:31]} 26.
Bxd5 {[%clk 00:19:08]} {[%emt 00:00:13]} Nxd5 {[%clk 00:01:22]} {[%emt
00:00:44]} 27. Qxd5 {[%clk 00:19:29]} {[%emt 00:00:09]} Qxd5 {[%clk 00:01:02]}
{[%emt 00:00:51]} 28. Rxd5 {[%clk 00:19:50]} {[%emt 00:00:07]} Bxa4 {[%clk
00:01:28]} {[%emt 00:00:06]} 29. Rxc5 {[%clk 00:20:12]} {[%emt 00:00:07]} Bb5
{[%clk 00:00:47]} {[%emt 00:01:11]} 30. Ra1 {[%clk 00:18:11]} {[%emt 00:02:29]}
a4 {[%clk 00:01:16]} {[%emt 00:00:02]} 31. Nf5 {[%clk 00:18:17]} {[%emt
00:00:24]} Kh7 {[%clk 00:01:12]} {[%emt 00:00:35]} 32. Ne7 {[%clk 00:15:10]}
{[%emt 00:03:36]} f5 {[%clk 00:01:05]} {[%emt 00:00:38]} 33. Ng3 {[%clk
00:15:13]} {[%emt 00:00:26]} Bd7 {[%clk 00:00:58]} {[%emt 00:00:37]} 34. Ne2
{[%clk 00:11:38]} {[%emt 00:04:05]} Rb7 {[%clk 00:00:58]} {[%emt 00:00:30]} 35.
Nd5 {[%clk 00:11:14]} {[%emt 00:00:53]} g5 {[%clk 00:00:42]} {[%emt 00:00:48]}
36. Nd4 {[%clk 00:09:46]} {[%emt 00:01:58]} Ng7 {[%clk 00:01:03]} {[%emt
00:00:09]} 37. g3 {[%clk 00:08:35]} {[%emt 00:01:41]} Rd8 {[%clk 00:01:04]}
{[%emt 00:00:29]} 38. Kf2 {[%clk 00:05:11]} {[%emt 00:03:54]} Kh8 {[%clk
00:00:59]} {[%emt 00:00:36]} 39. Ke3 {[%clk 00:03:55]} {[%emt 00:01:45]} Be8
{[%clk 00:01:13]} {[%emt 00:00:16]} 40. Rc7 {[%clk 00:00:57]} {[%emt 00:03:27]}
Rbb8 {[%clk 00:00:43]} {[%emt 00:01:01]} 41. Rxg7 {[%clk 00:23:18]} {[%emt
00:08:08]} Rxd5 {[%clk 00:28:54]} {[%emt 00:02:18]} 42. Rc7 {[%clk 00:23:02]}
{[%emt 00:00:46]} Bd7 {[%clk 00:27:56]} {[%emt 00:01:30]} 43. c3 {[%clk
00:20:50]} {[%emt 00:02:42]} bxc3 {[%clk 00:25:59]} {[%emt 00:02:27]} 44. bxc3
{[%clk 00:21:14]} {[%emt 00:00:05]} Be8 {[%clk 00:24:27]} {[%emt 00:02:03]} 45.
Nxf5 {[%clk 00:15:45]} {[%emt 00:05:59]} Ra8 {[%clk 00:22:15]} {[%emt
00:02:41]} 46. Ra3 {[%clk 00:14:51]} {[%emt 00:01:24]} Rd1 {[%clk 00:20:52]}
{[%emt 00:01:53]} 47. Nd4 {[%clk 00:11:10]} {[%emt 00:04:11]} Rh1 {[%clk
00:20:10]} {[%emt 00:01:12]} 48. f5 {[%clk 00:11:19]} {[%emt 00:00:21]} Re1+
{[%clk 00:19:57]} {[%emt 00:00:43]} 49. Kd3 {[%clk 00:10:41]} {[%emt 00:01:08]}
Rxe5 {[%clk 00:20:15]} {[%emt 00:00:13]} 50. g4 {[%clk 00:05:13]} {[%emt
00:05:58]} Re1 {[%clk 00:18:58]} {[%emt 00:01:47]} 51. Rb7 {[%clk 00:02:48]}
{[%emt 00:02:54]} Rg1 {[%clk 00:17:05]} {[%emt 00:02:23]} 52. h3 {[%clk
00:03:06]} {[%emt 00:00:13]} Rh1 {[%clk 00:14:11]} {[%emt 00:03:24]} 53. Kc4
{[%clk 00:02:32]} {[%emt 00:01:03]} Rxh3 {[%clk 00:13:44]} {[%emt 00:00:58]} 54.
f6 {[%clk 00:02:57]} {[%emt 00:00:05]} Bg6 {[%clk 00:13:14]} {[%emt 00:01:00]}
55. Kb4 {[%clk 00:01:30]} {[%emt 00:01:57]} Rh1 {[%clk 00:09:42]} {[%emt
00:04:02]} 56. Kc5 {[%clk 00:01:31]} {[%emt 00:00:28]} Rf1 {[%clk 00:08:57]}
{[%emt 00:01:15]} 57. Rb6 {[%clk 00:01:18]} {[%emt 00:00:43]} Rc8+ {[%clk
00:07:09]} {[%emt 00:02:18]} 58. Rc6 {[%clk 00:01:38]} {[%emt 00:00:11]} Rxc6+
{[%clk 00:07:14]} {[%emt 00:00:25]} 59. Nxc6 {[%clk 00:02:01]} {[%emt
00:00:06]} Rxf6 {[%clk 00:07:40]} {[%emt 00:00:04]} 60. Rxa4 {[%clk 00:02:21]}
{[%emt 00:00:10]} Rxc6+ {[%clk 00:08:04]} {[%emt 00:00:07]} 0-1

[Event "Elitserien 2022/2023"]
[Site "Elite Hotel Marina Plaza, Kungstorget 6, Helsingborg, Sweden"]
[Date "2022.10.14"]
[Round "1.23"]
[White "Hedman, Erik"]
[Black "Helgason, Reynir"]
[Result "1/2-1/2"]
[TimeControl "90 minutes for 40 moves + 30 minutes for the rest of the game + 30 seconds per move from move one."]
[WhiteTitle "IM"]
[BlackTitle "FM"]
[WhiteFideId "1702351"]
[BlackFideId "1700600"]
[WhiteElo "2322"]
[BlackElo "2269"]

1. Nf3 {[%clk 01:30:57]} {[%emt 00:00:02]} d5 {[%clk 01:30:41]} {[%emt
00:00:19]} 2. g3 {[%clk 01:31:22]} {[%emt 00:00:04]} Nf6 {[%clk 01:30:42]}
{[%emt 00:00:30]} 3. Bg2 {[%clk 01:31:47]} {[%emt 00:00:06]} e6 {[%clk
01:31:06]} {[%emt 00:00:05]} 4. O-O {[%clk 01:31:55]} {[%emt 00:00:22]} Be7
{[%clk 01:31:29]} {[%emt 00:00:07]} 5. d3 {[%clk 01:32:01]} {[%emt 00:00:25]}
O-O {[%clk 01:29:44]} {[%emt 00:02:15]} 6. Nbd2 {[%clk 01:32:16]} {[%emt
00:00:15]} a5 {[%clk 01:24:42]} {[%emt 00:05:32]} 7. e4 {[%clk 01:32:31]}
{[%emt 00:00:15]} a4 {[%clk 01:25:01]} {[%emt 00:00:11]} 8. a3 {[%clk
01:30:52]} {[%emt 00:02:09]} Nc6 {[%clk 01:22:18]} {[%emt 00:03:13]} 9. h3
{[%clk 01:18:24]} {[%emt 00:12:57]} dxe4 {[%clk 01:11:55]} {[%emt 00:10:53]} 10.
dxe4 {[%clk 01:17:47]} {[%emt 00:01:08]} e5 {[%clk 01:12:15]} {[%emt 00:00:09]}
11. Nc4 {[%clk 01:16:18]} {[%emt 00:01:57]} Nxe4 {[%clk 01:04:35]} {[%emt
00:08:11]} 12. Nfxe5 {[%clk 01:13:55]} {[%emt 00:02:52]} Nxe5 {[%clk 01:04:24]}
{[%emt 00:00:41]} 13. Nxe5 {[%clk 01:13:49]} {[%emt 00:00:38]} Qxd1 {[%clk
01:02:23]} {[%emt 00:02:31]} 14. Rxd1 {[%clk 01:14:10]} {[%emt 00:00:09]} Nd6
{[%clk 01:02:46]} {[%emt 00:00:06]} 15. f4 {[%clk 00:46:55]} {[%emt 00:27:45]}
Bf5 {[%clk 01:00:39]} {[%emt 00:02:37]} 16. Be3 {[%clk 00:38:49]} {[%emt
00:08:36]} Rfd8 {[%clk 00:54:05]} {[%emt 00:07:04]} 17. g4 {[%clk 00:26:20]}
{[%emt 00:13:00]} Be4 {[%clk 00:49:48]} {[%emt 00:04:45]} 18. Rd4 {[%clk
00:25:31]} {[%emt 00:01:20]} Bxg2 {[%clk 00:46:04]} {[%emt 00:04:15]} 19. Kxg2
{[%clk 00:25:55]} {[%emt 00:00:06]} f6 {[%clk 00:42:37]} {[%emt 00:03:56]} 20.
Nd3 {[%clk 00:24:53]} {[%emt 00:01:33]} b5 {[%clk 00:41:38]} {[%emt 00:01:28]}
21. Bf2 {[%clk 00:23:20]} {[%emt 00:02:03]} Nc4 {[%clk 00:40:41]} {[%emt
00:01:27]} 22. Re1 {[%clk 00:23:04]} {[%emt 00:00:47]} Rxd4 {[%clk 00:35:13]}
{[%emt 00:05:58]} 23. Bxd4 {[%clk 00:22:53]} {[%emt 00:00:40]} Kf7 {[%clk
00:35:12]} {[%emt 00:00:31]} 24. Re2 {[%clk 00:21:03]} {[%emt 00:02:20]} Rd8
{[%clk 00:32:35]} {[%emt 00:03:06]} 25. Bf2 {[%clk 00:20:05]} {[%emt 00:01:29]}
Rd5 {[%clk 00:26:02]} {[%emt 00:07:03]} 26. Kf3 {[%clk 00:19:04]} {[%emt
00:01:32]} g6 {[%clk 00:24:32]} {[%emt 00:02:00]} 27. Ke4 {[%clk 00:17:31]}
{[%emt 00:02:02]} c6 {[%clk 00:24:19]} {[%emt 00:00:42]} 28. Kf3 {[%clk
00:17:20]} {[%emt 00:00:42]} Bd6 {[%clk 00:20:56]} {[%emt 00:03:54]} 29. Be1
{[%clk 00:16:53]} {[%emt 00:00:57]} Bf8 {[%clk 00:16:23]} {[%emt 00:05:01]} 30.
Bc3 {[%clk 00:16:45]} {[%emt 00:00:39]} 1/2-1/2